fUST/lending_fUST_20251015
["ID","MTS","AMOUNT","RATE_DAILY","PERIOD"]
[391296328,1760473849068,-800.0,0.0003011,2]
[391296329,1760473849077,-600.0,0.0003013,2]
[391296330,1760473849086,-204.0,0.0003013,25]
[391296331,1760473849095,-1744.51084232,0.00030135,2]
[391296332,1760473849104,-4999.0,0.00030136,8]
[391296333,1760473849114,-12211.5758962,0.00030136,2]
[391296334,1760473849123,-151.0,0.00030142,30]
[391296335,1760473849132,-155.559281,0.00030142,30]
[391296336,1760473849141,-151.0,0.00030142,30]
[391296337,1760473849150,-151.0,0.00030142,30]
[391296338,1760473849160,-151.0,0.00030142,30]
[391296339,1760473849169,-151.0,0.00030142,30]
[391296340,1760473849178,-151.0,0.00030142,30]
[391296341,1760473849187,-151.0,0.00030142,30]
[391296342,1760473849197,-151.0,0.00030142,30]
[391296343,1760473849207,-151.0,0.00030142,30]
[391296344,1760473849218,-440.064733,0.00030142,30]
[391296345,1760473849228,-440.064733,0.00030142,30]
[391296346,1760473849237,-440.064733,0.00030142,30]
[391296347,1760473849247,-440.064733,0.00030142,30]
[391296348,1760473849257,-150.91,0.00030142,7]
[391296349,1760473849267,-200.0,0.00030144,10]
[391296350,1760473849276,-144184.92,0.00030145,3]
[391296351,1760473849285,-151.0,0.00030145,30]
[391296352,1760473849376,-151.0,0.00030145,30]
[391296353,1760473849385,-151.0,0.00030145,30]
[391296354,1760473849395,-151.0,0.00030145,30]
[391296355,1760473849406,-186.788131,0.00030145,30]
[391296356,1760473849415,-186.788131,0.00030145,30]
[391296357,1760473849424,-186.788131,0.00030145,30]
[391296358,1760473849433,-151.0,0.00030145,30]
[391296359,1760473849441,-186.788131,0.00030145,30]
[391296360,1760473849450,-151.0,0.00030145,30]
[391296361,1760473849459,-220.274804,0.00030145,30]
[391296362,1760473849468,-151.0,0.00030145,30]
[391296363,1760473849477,-151.0,0.00030145,30]
[391296364,1760473849486,-220.274804,0.00030145,30]
[391296365,1760473849495,-220.274804,0.00030145,30]
[391296366,1760473849504,-220.274804,0.00030145,30]
[391296367,1760473849513,-151.0,0.00030145,2]
[391296368,1760473849522,-151.0,0.00030145,30]
[391296369,1760473849531,-151.0,0.00030145,30]
[391296370,1760473849540,-151.0,0.00030145,30]
[391296371,1760473849550,-294.090132,0.00030145,30]
[391296372,1760473849559,-152.224132,0.00030145,30]
[391296373,1760473849568,-151.0,0.00030145,30]
[391296374,1760473849577,-151.0,0.00030145,30]
[391296375,1760473849586,-151.0,0.00030145,30]
[391296376,1760473849595,-151.0,0.00030145,30]
[391296377,1760473849604,-285.85708,0.00030145,30]
[391296378,1760473849612,-151.0,0.00030145,30]
[391296379,1760473849621,-151.0,0.00030145,30]
[391296380,1760473849631,-195.439422,0.00030145,30]
[391296381,1760473849639,-151.0,0.00030145,30]
[391296382,1760473849648,-151.0,0.00030145,30]
[391296383,1760473849658,-164.087251,0.00030145,30]
[391296384,1760473849667,-151.0,0.00030145,30]
[391296385,1760473849676,-151.0,0.00030145,30]
[391296386,1760473849684,-151.0,0.00030145,30]
[391296387,1760473849694,-151.0,0.00030145,30]
[391296388,1760473849703,-151.0,0.00030145,30]
[391296389,1760473849712,-151.0,0.00030145,30]
[391296390,1760473849721,-199.850898,0.00030145,30]
[391296391,1760473849730,-151.0,0.00030145,30]
[391296392,1760473849739,-199.850898,0.00030145,30]
[391296393,1760473849748,-199.850898,0.00030145,30]
[391296394,1760473849758,-199.850898,0.00030145,30]
[391296395,1760473849767,-151.0,0.00030145,30]
[391296396,1760473849776,-151.0,0.00030145,30]
[391296397,1760473849785,-151.0,0.00030145,30]
[391296398,1760473849794,-151.0,0.00030145,30]
[391296399,1760473849803,-151.0,0.00030145,30]
[391296400,1760473849812,-151.0,0.00030145,30]
[391296401,1760473849821,-275.520264,0.00030145,15]
[391296402,1760473849829,-275.520264,0.00030145,15]
[391296403,1760473849839,-275.520264,0.00030145,15]
[391296404,1760473849848,-151.0,0.00030145,30]
[391296405,1760473849858,-275.520264,0.00030145,15]
[391296406,1760473849867,-185.456468,0.00030145,30]
[391296407,1760473849876,-185.456468,0.00030145,30]
[391296408,1760473849885,-185.456468,0.00030145,30]
[391296409,1760473849894,-185.456468,0.00030145,30]
[391296410,1760473849904,-301.78492,0.00030145,30]
[391296411,1760473849913,-301.78492,0.00030145,30]
[391296412,1760473849922,-301.78492,0.00030145,30]
[391296413,1760473849931,-301.78492,0.00030145,30]
[391296414,1760473849940,-151.0,0.00030145,30]
[391296415,1760473849950,-151.0,0.00030145,30]
[391296416,1760473849959,-151.0,0.00030145,30]
[391296417,1760473849968,-151.0,0.00030145,30]
[391296418,1760473849977,-1082.294524,0.00030145,30]
[391296419,1760473849986,-151.0,0.00030145,30]
[391296420,1760473849995,-1082.294524,0.00030145,30]
[391296421,1760473850004,-153.330675,0.00030145,30]
[391296422,1760473850013,-257.327442,0.00030145,30]
[391296423,1760473850023,-151.0,0.00030145,30]
[391296424,1760473850032,-1082.294524,0.00030145,30]
[391296425,1760473850042,-257.327442,0.00030145,30]
[391296426,1760473850051,-151.0,0.00030145,30]
[391296427,1760473850061,-1082.294524,0.00030145,30]
[391296428,1760473850070,-151.0,0.00030145,30]
[391296429,1760473850079,-257.327442,0.00030145,30]
[391296430,1760473850088,-151.0,0.00030145,30]
[391296431,1760473850097,-257.327442,0.00030145,30]
[391296432,1760473850107,-151.0,0.00030145,30]
[391296433,1760473850116,-151.0,0.00030145,30]
[391296434,1760473850125,-880.966001,0.00030145,30]
[391296435,1760473850134,-151.0,0.00030145,30]
[391296436,1760473850143,-880.966001,0.00030145,30]
[391296437,1760473850152,-880.966001,0.00030145,30]
[391296438,1760473850162,-880.966001,0.00030145,30]
[391296439,1760473850171,-151.0,0.00030145,30]
[391296440,1760473850180,-151.0,0.00030145,30]
[391296441,1760473850191,-151.0,0.00030145,30]
[391296442,1760473850200,-218.361782,0.00030145,30]
[391296443,1760473850210,-218.361782,0.00030145,30]
[391296444,1760473850220,-218.361782,0.00030145,30]
[391296445,1760473850230,-151.0,0.00030145,30]
[391296446,1760473850239,-151.0,0.00030145,30]
[391296447,1760473850249,-218.361782,0.00030145,30]
[391296448,1760473850258,-151.0,0.00030145,30]
[391296449,1760473850267,-151.0,0.00030145,30]
[391296450,1760473850276,-151.0,0.00030145,30]
[391296451,1760473850285,-426.0455,0.00030145,30]
[391296452,1760473850295,-151.0,0.00030145,30]
[391296453,1760473850303,-426.0455,0.00030145,30]
[391296454,1760473850313,-426.0455,0.00030145,30]
[391296455,1760473850324,-423.507122,0.00030145,30]
[391296456,1760473850334,-426.0455,0.00030145,30]
[391296457,1760473850343,-151.0,0.00030145,30]
[391296458,1760473850352,-423.507122,0.00030145,30]
[391296459,1760473850361,-151.0,0.00030145,30]
[391296460,1760473850371,-423.507122,0.00030145,30]
[391296461,1760473850380,-250.145292,0.00030145,30]
[391296462,1760473850388,-423.507122,0.00030145,30]
[391296463,1760473850398,-250.145292,0.00030145,30]
[391296464,1760473850409,-250.145292,0.00030145,30]
[391296465,1760473850418,-250.145292,0.00030145,30]
[391296466,1760473850427,-151.0,0.00030145,30]
[391296467,1760473850436,-151.0,0.00030145,30]
[391296468,1760473850445,-151.0,0.00030145,30]
[391296469,1760473850454,-151.0,0.00030145,30]
[391296470,1760473850463,-290.103424,0.00030145,30]
[391296471,1760473850472,-290.103424,0.00030145,30]
[391296472,1760473850482,-290.103424,0.00030145,30]
[391296473,1760473850491,-290.103424,0.00030145,30]
[391296474,1760473850500,-305.523303,0.00030145,30]
[391296475,1760473850509,-305.523303,0.00030145,30]
[391296476,1760473850519,-305.523303,0.00030145,30]
[391296477,1760473850528,-305.523303,0.00030145,30]
[391296478,1760473850537,-259.384196,0.00030145,30]
[391296479,1760473850546,-259.384196,0.00030145,30]
[391296480,1760473850555,-151.0,0.00030145,30]
[391296481,1760473850564,-259.384196,0.00030145,30]
[391296482,1760473850573,-151.0,0.00030145,30]
[391296483,1760473850582,-259.384196,0.00030145,30]
[391296484,1760473850590,-151.0,0.00030145,30]
[391296485,1760473850599,-151.0,0.00030145,30]
[391296486,1760473850608,-151.0,0.00030145,30]
[391296487,1760473850617,-151.0,0.00030145,30]
[391296488,1760473850626,-1756.898018,0.00030145,30]
[391296489,1760473850635,-1756.898018,0.00030145,30]
[391296490,1760473850643,-1756.898018,0.00030145,30]
[391296491,1760473850652,-1756.898018,0.00030145,30]
[391296492,1760473850661,-205.214337,0.00030145,30]
[391296493,1760473850670,-205.214337,0.00030145,30]
[391296494,1760473850679,-332.930076,0.00030145,30]
[391296495,1760473850688,-205.214337,0.00030145,30]
[391296496,1760473850698,-332.930076,0.00030145,30]
[391296497,1760473850707,-205.214337,0.00030145,30]
[391296498,1760473850715,-332.930076,0.00030145,30]
[391296499,1760473850724,-332.930076,0.00030145,30]
[391296500,1760473850733,-423.507122,0.00030146,30]
[391296501,1760473850742,-423.507122,0.00030146,30]
[391296502,1760473850751,-423.507122,0.00030146,30]
[391296503,1760473850761,-250.145292,0.00030146,30]
[391296504,1760473850770,-423.507122,0.00030146,30]
[391296505,1760473850780,-250.145292,0.00030146,30]
[391296506,1760473850789,-250.145292,0.00030146,30]
[391296507,1760473850798,-250.145292,0.00030146,30]
[391296508,1760473850807,-151.0,0.00030146,30]
[391296509,1760473850816,-151.0,0.00030146,30]
[391296510,1760473850825,-209.616144,0.00030146,30]
[391296511,1760473850834,-290.103424,0.00030146,30]
[391296512,1760473850843,-290.103424,0.00030146,30]
[391296513,1760473850852,-290.103424,0.00030146,30]
[391296514,1760473850862,-290.103424,0.00030146,30]
[391296515,1760473850871,-305.523303,0.00030146,30]
[391296516,1760473850881,-305.523303,0.00030146,30]
[391296517,1760473850889,-305.523303,0.00030146,30]
[391296518,1760473850898,-305.523303,0.00030146,30]
[391296519,1760473850907,-259.384196,0.00030146,30]
[391296520,1760473850916,-259.384196,0.00030146,30]
[391296521,1760473850925,-151.0,0.00030146,30]
[391296522,1760473850935,-259.384196,0.00030146,30]
[391296523,1760473850943,-259.384196,0.00030146,30]
[391296524,1760473850952,-151.0,0.00030146,30]
[391296525,1760473850961,-163.058293,0.00030146,30]
[391296526,1760473850970,-151.0,0.00030146,30]
[391296527,1760473850980,-151.0,0.00030146,30]
[391296528,1760473850989,-1756.898018,0.00030146,30]
[391296529,1760473850997,-1756.898018,0.00030146,30]
[391296530,1760473851007,-1756.898018,0.00030146,30]
[391296531,1760473851017,-1756.898018,0.00030146,30]
[391296532,1760473851026,-205.214337,0.00030146,30]
[391296533,1760473851035,-205.214337,0.00030146,30]
[391296534,1760473851044,-332.930076,0.00030146,30]
[391296535,1760473851053,-205.214337,0.00030146,30]
[391296536,1760473851062,-332.930076,0.00030146,30]
[391296537,1760473851071,-205.214337,0.00030146,30]
[391296538,1760473851080,-332.930076,0.00030146,30]
[391296539,1760473851089,-151.0,0.00030146,30]
[391296540,1760473851098,-332.930076,0.00030146,30]
[391296541,1760473851107,-151.0,0.00030146,30]
[391296542,1760473851117,-152.52136,0.00030146,30]
[391296543,1760473851126,-151.0,0.00030146,30]
[391296544,1760473851135,-151.0,0.00030146,30]
[391296545,1760473851144,-151.0,0.00030146,30]
[391296546,1760473851154,-151.0,0.00030146,30]
[391296547,1760473851163,-151.0,0.00030146,30]
[391296548,1760473851172,-156.829808,0.00030146,30]
[391296549,1760473851181,-151.0,0.00030146,30]
[391296550,1760473851190,-151.0,0.00030146,30]
[391296551,1760473851199,-156.829808,0.00030146,30]
[391296552,1760473851208,-151.0,0.00030146,30]
[391296553,1760473851217,-156.829808,0.00030146,30]
[391296554,1760473851226,-156.829808,0.00030146,30]
[391296555,1760473851236,-248.584319,0.00030146,2]
[391296556,1760473851246,-5232.623086,0.00030146,30]
[391296557,1760473851256,-248.584319,0.00030146,2]
[391296558,1760473851265,-5232.623086,0.00030146,30]
[391296559,1760473851275,-151.0,0.00030146,30]
[391296560,1760473851285,-248.584319,0.00030146,2]
[391296561,1760473851295,-5232.623086,0.00030146,30]
[391296562,1760473851304,-248.584319,0.00030146,2]
[391296563,1760473851313,-5232.623086,0.00030146,30]
[391296564,1760473851324,-153.745377,0.00030146,30]
[391296565,1760473851335,-153.745377,0.00030146,30]
[391296566,1760473851345,-153.745377,0.00030146,30]
[391296567,1760473851354,-153.745377,0.00030146,30]
[391296568,1760473851363,-151.0,0.00030146,30]
[391296569,1760473851375,-151.0,0.00030146,30]
[391296570,1760473851385,-151.0,0.00030146,30]
[391296571,1760473851394,-151.0,0.00030146,30]
[391296572,1760473851405,-151.0,0.00030146,30]
[391296573,1760473851413,-151.0,0.00030146,30]
[391296574,1760473851422,-191.2764,0.00030146,30]
[391296575,1760473851432,-152.233092,0.00030146,30]
[391296576,1760473851441,-151.0,0.00030146,30]
[391296577,1760473851450,-178.829912,0.00030146,30]
[391296578,1760473851459,-665.100187,0.00030146,30]
[391296579,1760473851468,-151.0,0.00030146,30]
[391296580,1760473851477,-178.829912,0.00030146,30]
[391296581,1760473851486,-665.100187,0.00030146,30]
[391296582,1760473851495,-178.829912,0.00030146,30]
[391296583,1760473851504,-665.100187,0.00030146,30]
[391296584,1760473851513,-178.829912,0.00030146,30]
[391296585,1760473851523,-665.100187,0.00030146,30]
[391296586,1760473851532,-151.0,0.00030146,30]
[391296587,1760473851542,-151.0,0.00030146,30]
[391296588,1760473851551,-1166486.57345648,0.00030146,2]
[391296589,1760473851568,-3254.56623665,0.00030146,2]
[391296590,1760473851580,-3261.44,0.00030146,2]
[391296603,1760474201138,210.73985699,0.00030447,60]
[391296622,1760475013204,2147.47365446,0.00018905,2]
[391296666,1760475038578,-150.0,0.00019494,2]
[391296668,1760475038587,-190.09,0.00020422,2]
[391296670,1760475038596,-285.14,0.00021351,2]
[391296672,1760475038605,-380.18,0.00022279,2]
[391296674,1760475038615,-475.23,0.00023207,2]
[391296676,1760475038624,-2387.9283186,0.00023377,2]
[391296678,1760475038633,-171.93509861,0.00024136,2]
[391296680,1760475038645,-398.34490139,0.00024136,2]
[391296682,1760475038656,-150.0,0.00024191,2]
[391296684,1760475038668,-172.5,0.00024791,2]
[391296686,1760475038678,-191.0,0.00024799,2]
[391296688,1760475038687,-334.83112983,0.000248,2]
[391296690,1760475038696,-736.30972354,0.000248,2]
[391296721,1760475040602,-7585.84279065,0.000248,2]
[391296722,1760475040658,-507.34145989,0.000248,2]
[391296736,1760475043711,-3306.15824414,0.000248,2]
[391296830,1760476231887,-150.0,0.00019285,2]
[391296831,1760476231896,-150.0,0.00019451,2]
[391296832,1760476231907,-142.88554272,0.00020051,2]
[391296851,1760476237675,-29.61445728,0.00020051,2]
[391296853,1760476237684,-188.33,0.00020203,2]
[391296855,1760476237694,-195.0,0.00020651,2]
[391296857,1760476237703,-282.49,0.00021121,2]
[391296859,1760476237712,-217.5,0.00021251,2]
[391296861,1760476237722,-240.0,0.00021851,2]
[391296863,1760476237731,-171.968618,0.00022013,2]
[391296865,1760476237740,-376.65,0.0002204,2]
[391296867,1760476237749,-300.0,0.00022449,2]
[391296869,1760476237759,-300.0,0.00022449,2]
[391296871,1760476237768,-300.0,0.00022449,2]
[391296873,1760476237781,-1200.0,0.00022449,2]
[391296874,1760476237790,-1200.0,0.0002245,2]
[391296876,1760476237799,-580.60297292,0.0002245,2]
[391296879,1760476237811,-15107.41087072,0.0002245,2]
[391296881,1760476237820,-262.5,0.00022451,2]
[391296883,1760476237829,-1000.0,0.00022661,30]
[391296885,1760476237838,-666.0,0.00022706,2]
[391296887,1760476237847,-470.81,0.00022958,2]
[391296888,1760476237858,-160.0,0.00023,2]
[391296890,1760476237867,-285.0,0.00023051,2]
[391296892,1760476237877,-121.43031253,0.00023459,20]
[391296895,1760476237888,-178.56968747,0.00023459,20]
[391296897,1760476237897,-300.0,0.00023459,20]
[391296899,1760476237907,-300.0,0.00023459,20]
[391296901,1760476237916,-300.0,0.00023459,20]
[391296903,1760476237925,-300.0,0.00023459,20]
[391296904,1760476237934,-134.10629142,0.00023459,20]
[391296906,1760476237946,-165.89370858,0.00023459,20]
[391296907,1760476237955,-300.0,0.00023459,20]
[391296908,1760476237965,-300.0,0.00023459,20]
[391296909,1760476237974,-300.0,0.00023459,20]
[391296910,1760476237984,-300.0,0.00023459,20]
[391296911,1760476237993,-300.0,0.00023459,20]
[391296912,1760476238009,-300.0,0.00023459,20]
[391296913,1760476238018,-300.0,0.00023459,20]
[391296914,1760476238028,-300.0,0.00023459,20]
[391296915,1760476238037,-300.0,0.00023459,20]
[391296916,1760476238049,-224.35910232,0.000235,2]
[391296917,1760476238061,-275.64089768,0.000235,2]
[391296918,1760476238070,-564.98,0.00023876,2]
[391296919,1760476238081,-166.21043166,0.00023904,2]
[391296920,1760476238090,-600.0,0.00023927,20]
[391296921,1760476238100,-317.81,0.00024004,2]
[391296922,1760476238109,-166.2,0.00024004,2]
[391296923,1760476238119,-100.4769452,0.00024204,2]
[391296924,1760476238131,-258.89415627,0.00024204,2]
[391296925,1760476238141,-380.0,0.00024658,2]
[391296926,1760476238150,-51.61451031,0.00024795,2]
[391296927,1760476238162,-607.52548969,0.00024795,2]
[391296928,1760476238171,-267.86490387,0.000248,2]
[391296929,1760476238180,-213.08502412,0.000248,2]
[391296930,1760476238191,-633.47098524,0.000248,2]
[391296931,1760476238200,-823.32360479,0.000248,2]
[391296932,1760476238219,-113.89414301,0.000248,2]
[391296933,1760476238228,-209.0,0.00025,30]
[391296934,1760476238237,-91.73585699,0.00025,30]
[391296935,1760476238252,-408.26414301,0.00025,30]
[391296936,1760476238261,-267.86490387,0.000251,2]
[391296937,1760476238271,-846.55600936,0.000251,2]
[391296938,1760476238280,-937.2177478,0.000251,2]
[391296939,1760476238289,-417.15472785,0.00025294,2]
[391296940,1760476238299,-175.614,0.00025295,9]
[391296941,1760476238308,-267.86490387,0.000253,2]
[391296942,1760476238317,-846.55600936,0.000253,2]
[391296943,1760476238327,-937.2177478,0.000253,2]
[391296944,1760476238336,-948.0803827,0.00025338,2]
[391296945,1760476238345,-171.968618,0.00025437,2]
[391296946,1760476238355,-267.86490387,0.000256,2]
[391296947,1760476238365,-846.55600936,0.000256,2]
[391296948,1760476238374,-937.2177478,0.000256,2]
[391296949,1760476238383,-753.3,0.00025713,2]
[391296950,1760476238393,-267.86490387,0.000258,2]
[391296951,1760476238403,-846.55600936,0.000258,2]
[391296952,1760476238413,-937.2177478,0.000258,2]
[391296953,1760476238422,-720.0,0.0002632,30]
[391296954,1760476238431,-363.65268336,0.000264,2]
[391296955,1760476238441,-847.47,0.00026631,2]
[391296956,1760476238450,-158.10038707,0.0002701,2]
[391296957,1760476238460,-497.26164356,0.0002701,2]
[391296958,1760476238469,-160.0,0.00027275,3]
[391296959,1760476238478,-1000.0,0.00027397,2]
[391296960,1760476238487,-1000.0,0.00027397,2]
[391296961,1760476238496,-1000.0,0.00027397,2]
[391296962,1760476238506,-1000.0,0.00027397,2]
[391296963,1760476238515,-500.0,0.00027397,2]
[391296964,1760476238524,-500.0,0.00027397,2]
[391296965,1760476238533,-500.0,0.00027397,2]
[391296966,1760476238543,-480.6807465,0.00027397,2]
[391296967,1760476238552,-941.63,0.0002755,2]
[391296968,1760476238562,-189.8496045,0.00027973,30]
[391296969,1760476238572,-162.9892445,0.00027973,30]
[391296970,1760476238581,-153.0,0.00027973,30]
[391296971,1760476238591,-162.9892445,0.00027973,30]
[391296972,1760476238600,-189.8496045,0.00027973,30]
[391296973,1760476238610,-298.0923344,0.00027973,30]
[391296974,1760476238620,-153.0,0.00027973,30]
[391296975,1760476238630,-588.8145586,0.00027973,30]
[391296976,1760476238640,-298.0923344,0.00027973,30]
[391296977,1760476238649,-162.9892445,0.00027973,30]
[391296978,1760476238659,-189.8496045,0.00027973,30]
[391296979,1760476238669,-588.8145586,0.00027973,30]
[391296980,1760476238679,-153.0,0.00027973,30]
[391296981,1760476238689,-298.0923344,0.00027973,30]
[391296982,1760476238699,-588.8145586,0.00027973,30]
[391296983,1760476238709,-189.8496045,0.00027973,30]
[391296984,1760476238719,-297.1025617,0.00027973,30]
[391296985,1760476238730,-153.0,0.00027973,30]
[391296986,1760476238739,-189.8496045,0.00027973,30]
[391296987,1760476238749,-153.0,0.00027973,30]
[391296988,1760476238758,-194.2331127,0.00027973,30]
[391296989,1760476238767,-153.0,0.00027973,30]
[391296990,1760476238777,-601.0,0.00028332,7]
[391296991,1760476238787,-800.0,0.00028453,7]
[391296992,1760476238798,-392.1734423,0.00028493,30]
[391296993,1760476238807,-601.0,0.00028527,2]
[391296994,1760476238816,-500.0,0.00028611,2]
[391296995,1760476238825,-500.0,0.00028611,2]
[391296996,1760476238835,-500.0,0.00028611,2]
[391296997,1760476238844,-421.22604526,0.00028611,2]
[391296998,1760476238854,-4758.09540707,0.00028612,2]
[391296999,1760476238864,-155.70483757,0.00028612,2]
[391297000,1760476238874,-250.0,0.00028612,2]
[391297001,1760476238884,-250.0,0.00028612,2]
[391297002,1760476238895,-250.0,0.00028612,2]
[391297003,1760476238906,-250.0,0.00028612,2]
[391297004,1760476238915,-250.0,0.00028612,2]
[391297005,1760476238925,-213.8061688,0.00028612,2]
[391297006,1760476238935,-500.0,0.00028767,30]
[391297007,1760476238944,-500.0,0.00028767,30]
[391297008,1760476238954,-392.1734423,0.00028853,30]
[391297009,1760476238963,-171.968618,0.00028862,60]
[391297010,1760476238974,-392.1734423,0.00028868,30]
[391297011,1760476238983,-6721.59754737,0.000289,4]
[391297037,1760476242750,-2237.94696828,0.000289,4]
[391297042,1760476242859,-3818.92792689,0.000289,4]
[391297048,1760476245721,-8047.57552973,0.000289,4]
[391297049,1760476245731,-178.34,0.0002894,10]
[391297050,1760476245740,-11201.3588886,0.0002895,2]
[391297051,1760476245777,-2355.1919997,0.0002895,2]
[391297052,1760476245789,-9368.16611526,0.0002895,2]
[391297053,1760476245835,-2494.35096069,0.0002895,2]
[391297054,1760476245845,-864.0,0.00028952,30]
[391297055,1760476245859,-3257.3118773,0.00028963,2]
[391297056,1760476245881,-830.6395,0.00028963,2]
[391297086,1760476559833,432.787213,0.00013699,2]
[391297179,1760477235806,1343.61,0.00030441,60]
[391297185,1760477316213,150540.32702605,0.00030441,120]
[391297338,1760477437887,-150.0,0.00019415,2]
[391297339,1760477437896,-150.0,0.00019415,2]
[391297340,1760477437906,-162.40688498,0.00020015,2]
[391297341,1760477437916,-432.787213,0.00020187,2]
[391297342,1760477437925,-150.0,0.0002034,2]
[391297343,1760477437935,-150.0,0.00021264,2]
[391297344,1760477437945,-150.0,0.00022189,2]
[391297345,1760477437955,-1020.43524113,0.000225,2]
[391297346,1760477437964,-5322.20284613,0.00023,2]
[391297347,1760477437974,-1200.0,0.0002313,2]
[391297348,1760477437984,-182.74,0.00023131,2]
[391297349,1760477437993,-300.0,0.00023199,2]
[391297350,1760477438002,-300.0,0.00023199,2]
[391297351,1760477438012,-1936.55989105,0.000232,2]
[391297352,1760477438027,-736.12090922,0.000232,2]
[391297399,1760477443499,-933.69040795,0.000232,2]
[391297434,1760477446165,-1413.72198329,0.000232,2]
[391297436,1760477446174,-1000.0,0.000235,2]
[391297437,1760477446183,-300.0,0.00023663,20]
[391297438,1760477446192,-300.0,0.00023663,20]
[391297439,1760477446201,-300.0,0.00023663,20]
[391297440,1760477446210,-300.0,0.00023663,20]
[391297441,1760477446219,-300.0,0.00023663,20]
[391297442,1760477446228,-300.0,0.00023663,20]
[391297443,1760477446237,-300.0,0.00023663,20]
[391297444,1760477446245,-300.0,0.00023663,20]
[391297445,1760477446254,-300.0,0.00023663,20]
[391297446,1760477446264,-300.0,0.00023663,20]
[391297447,1760477446273,-300.0,0.00023663,20]
[391297448,1760477446282,-300.0,0.00023663,20]
[391297449,1760477446293,-300.0,0.00023663,20]
[391297450,1760477446303,-300.0,0.00023663,20]
[391297451,1760477446313,-300.0,0.00023663,20]
[391297452,1760477446322,-219.29,0.00024057,2]
[391297453,1760477446331,-600.0,0.00024135,20]
[391297454,1760477446341,-211.63900234,0.000248,2]
[391297455,1760477446350,-413.189283,0.00024893,2]
[391297456,1760477446359,-255.84,0.00024982,2]
[391297457,1760477446369,-211.63900234,0.000251,2]
[391297458,1760477446378,-211.63900234,0.000253,2]
[391297459,1760477446387,-211.63900234,0.000256,2]
[391297460,1760477446397,-211.63900234,0.000258,2]
[391297461,1760477446406,-292.39,0.00025907,2]
[391297462,1760477446414,-10490.29140367,0.00026,30]
[391297463,1760477446423,-720.0,0.00026549,30]
[391297465,1760477446432,-432.787213,0.00026676,2]
[391297466,1760477446440,-328.94,0.00026832,2]
[391297467,1760477446449,-551.4903008,0.00027534,30]
[391297468,1760477446458,-392.1734423,0.00027534,30]
[391297469,1760477446467,-392.1734423,0.00027534,30]
[391297470,1760477446475,-735.692327,0.00027534,30]
[391297471,1760477446484,-365.49,0.00027758,2]
[391297472,1760477446493,-283.4,0.0002799,10]
[391297473,1760477446501,-94428.71301377,0.00028,2]
[391297474,1760477446511,-5888.0,0.00028169,7]
[391297475,1760477446520,-175.61415077,0.00028493,20]
[391297477,1760477446529,-392.1734423,0.00028521,30]
[391297478,1760477446538,-392.1734423,0.00028521,30]
[391297479,1760477446547,-392.1734423,0.00028521,30]
[391297480,1760477446556,-392.1734423,0.00028521,30]
[391297481,1760477446565,-392.1734423,0.00028521,30]
[391297482,1760477446574,-392.1734423,0.00028521,30]
[391297483,1760477446583,-392.1734423,0.00028521,30]
[391297484,1760477446592,-392.1734423,0.00028521,30]
[391297485,1760477446601,-392.1734423,0.00028521,30]
[391297486,1760477446610,-392.1734423,0.00028521,30]
[391297487,1760477446618,-392.1734423,0.00028521,30]
[391297488,1760477446627,-392.1734423,0.00028521,30]